Cogmind - Beta 17.1 *** ADVENTURER MODE // 2026.09.06 @ 12:28:02 // Winter2019/RPGLIKE Player: GogoFox Result: Destroyed by S-27 Virus with Autogun Performance ------------- Evolutions (3) 1500 Regions Visited (6) 1200 Robots Destroyed (27) 135 Value Destroyed (473) 473 Prototype IDs (32) 640 Alien Tech Used (0) 0 Bonus (300) 300 TOTAL SCORE: 4248 Bonus ------- Aligned with FarCom 300 Cogmind --------- Core Integrity 0/600 Matter 300/300 Energy 160/160 System Corruption 0% Temperature Cool (0) Movement Core (50) Location -7/Factory Parts ------- > --- POWER (1) -------- Light Nuclear Core > --- PROPULSION (5) --- Light Treads Light Treads Improved Hover Unit Improved Hover Unit Aerolev Unit > --- UTILITY (4) ------ Improved Terrain Scanner Seismic Detector Reaction Control System PSU Rigger > --- WEAPON (1) ------- Blade Saw > --- INVENTORY (2) ---- Proton Missile Launcher Mini Grenade Launcher Peak State ------------ > --- POWER ------------ Light Nuclear Core > --- PROPULSION ------- Light Treads Light Treads Improved Hover Unit Improved Hover Unit Aerolev Unit > --- UTILITY ---------- Improved Terrain Scanner Seismic Detector Reaction Control System PSU Rigger > --- WEAPON ----------- Blade Saw > --- INVENTORY -------- Proton Missile Launcher Mini Grenade Launcher [Rating: 31] Favorites ----------- Power Light Ion Engine Engine Light Ion Engine Power Core Light Nuclear Core Propulsion Light Treads Treads Light Treads Hover Unit Improved Hover Unit Utility Seismic Detector Device Seismic Detector Processor Transport Network Coupler Weapon Mining Claw Ballistic Gun Light Assault Rifle Slashing Weapon Mining Claw Build | -11 -10 -10 -10 -9 -8 -7 ------- Run | Yrd Mat Min Exi Min Mat Fac Slots Evolved 7 | 3 . . . 2 2 . Power . | . . . . . . . Propulsion 4 | 1 . . . 2 1 . Utility 3 | 2 . . . . 1 . Weapon . | . . . . . . . Parts Attached 19 | 5 4 2 . 1 5 2 Power 4 | 1 1 1 . . 1 . Engine 3 | 1 1 1 . . . . Core 1 | . . . . . 1 . Reactor . | . . . . . . . Propulsion 5 | 2 . . . . 3 . Treads 2 | 2 . . . . . . Leg . | . . . . . . . Wheel . | . . . . . . . Hover 3 | . . . . . 3 . Flight . | . . . . . . . Utility 6 | 1 2 . . 1 1 1 Device 5 | 1 1 . . 1 1 1 Storage . | . . . . . . . Processor 1 | . 1 . . . . . Hackware . | . . . . . . . Protection . | . . . . . . . Artifact . | . . . . . . . Weapon 4 | 1 1 1 . . . 1 Energy Gun . | . . . . . . . Energy Cannon . | . . . . . . . Ballistic Gun 2 | 1 . 1 . . . . Ballistic Cannon . | . . . . . . . Launcher . | . . . . . . . Special Weapon . | . . . . . . . Impact Weapon . | . . . . . . . Slashing Weapon 2 | . 1 . . . . 1 Piercing Weapon . | . . . . . . . Special Melee Weapon . | . . . . . . . Unidentified Prototypes 2 | . . . . 1 1 . Parts Lost 1 | . . . . 1 . . Power . | . . . . . . . Propulsion . | . . . . . . . Utility 1 | . . . . 1 . . Weapon . | . . . . . . . Highest Loss Streak 1 | . . . . 1 . . To Critical Strikes . | . . . . . . . Average Backups 1 | . 1 2 2 2 1 1 Power . | . . . . . . . Propulsion . | . . . . . . . Utility . | . . 1 1 1 . . Weapon . | . 1 1 1 . 1 1 Tool/Special . | . . . . . . . Unused Backups 6 | . 3 . 1 . . 2 Power . | . . . . . . . Propulsion 2 | . 2 . . . . . Utility 1 | . . . 1 . . . Weapon 3 | . 1 . . . . 2 Tool/Special . | . . . . . . . Average Slot Usage (%) 93 | . 94 100 100 77 88 100 Engine 12 | . 14 14 14 11 4 . Treads 26 | . 28 28 28 22 18 18 Hover 2 | . . . . . 15 27 Device 27 | . 27 28 28 22 26 35 Processor 9 | . 9 14 14 11 9 . Ballistic Gun 4 | . 3 7 14 6 . . Slashing Weapon 8 | . 10 6 . 4 9 9 Peak Build Rating 31 | 5 7 7 7 10 27 31 Average Rating 8 | 4 6 7 7 7 22 29 On Entrance 9 | . 5 7 7 7 10 27 Avg Prop Armor Cover (%) 28 | . . 28 27 28 32 30 Naked Turns . | . . . . . . . Heaviest Build 12 | 7 8 9 8 9 11 12 Greatest Support 40 | 40 40 40 13 13 17 13 Greatest Overweight (x) . | . . . . . . . Average Overweight (x) . | . . . . . . . Largest Inventory Capacity 2 | 2 2 2 2 2 2 2 Average Capacity 1 | 1 2 2 2 2 2 2 Most Carried 2 | . 2 2 2 2 2 2 Average Carried 1 | . 1 2 1 1 1 1 Final Capacity 2 | 2 2 2 2 2 2 2 Final Carried 2 | . 2 2 2 2 2 2 Class Distribution -------------------- 78% | Hacker-Mutant 18% | Hacker-Scout 3% | Wizard-Scout Dominant Class ---------------- Hacker-Mutant | -10/Materials Hacker-Mutant | -10/Mines Hacker-Mutant | -10/Exiles Hacker-Scout | -9/Mines Hacker-Scout | -8/Materials Wizard-Scout | -7/Factory Resources | -11 -10 -10 -10 -9 -8 -7 ----------- Run | Yrd Mat Min Exi Min Mat Fac Matter Collected 530 | 256 92 58 . 34 25 65 Remotely . | . . . . . . . Salvage Created 714 | 142 412 85 . . 42 33 Parts 43 | 7 26 2 . . 4 4 Haulers Intercepted 2 | . 2 . . . . . Recyclers Shooed 1 | . 1 . . . . . Parts Field Recycled . | . . . . . . . Retrieved Matter . | . . . . . . . Parts Self-Destructed . | . . . . . . . Prevented . | . . . . . . . Parts Restored . | . . . . . . . Kills | -11 -10 -10 -10 -9 -8 -7 ------- Run | Yrd Mat Min Exi Min Mat Fac Combat Hostiles Destroyed 18 | . 12 4 . . . 2 Melee 10 | . 6 2 . . . 2 Guns 8 | . 6 2 . . . . Classes Destroyed 9 | 3 4 1 . . 1 . Worker 2 | 1 1 . . . . . Tunneler 2 | 2 . . . . . . Hauler 2 | . 2 . . . . . Recycler 1 | 1 . . . . . . Operator 1 | . . . . . 1 . Watcher 3 | . 2 . . . 1 . Swarmer 10 | . 8 . . . . 2 Grunt 6 | . 4 2 . . . . Assembled 2 | . . 2 . . . . Best Kill Streak 3 | 3 3 2 . . 1 2 Combat Bots Only 3 | . 3 2 . . . 2 Max Kills in Single Turn 1 | 1 1 1 . . 1 1 Gunslinging . | . . . . . . . Exploded . | . . . . . . . Melee 1 | . 1 1 . . . 1 Uniques/NPCs Destroyed . | . . . . . . . Combat | -11 -10 -10 -10 -9 -8 -7 -------- Run | Yrd Mat Min Exi Min Mat Fac Hostile Shots Fired 156 | . 77 50 . 2 1 26 Missed 52 | . 22 14 . 1 . 15 Hits 104 | . 55 36 . 1 1 11 Melee 3 | . . 3 . . . . Projectile 101 | . 55 33 . 1 1 11 AOE 2 | . . . . 2 . . Critical Strikes 3 | . 1 2 . . . . Damage Taken 998 | . 441 376 . 39 10 132 Core 805 | . 345 317 . 32 8 103 Absorbed by Shields . | . . . . . . . Redirected to Core 607 | . 285 197 . 24 8 93 Ignored by Resistances 297 | . 132 113 . 12 3 37 Core Remaining (%) 44 | 100 . . . 17 16 . Volleys Fired 80 | 32 26 22 . . . . Largest 1 | 1 1 1 . . . . Hottest 20 | 20 20 20 . . . . Shots Fired 80 | 32 26 22 . . . . Gun 80 | 32 26 22 . . . . Cannon . | . . . . . . . Launcher . | . . . . . . . Special . | . . . . . . . Kinetic 80 | 32 26 22 . . . . Thermal . | . . . . . . . Explosive . | . . . . . . . Electromagnetic . | . . . . . . . Robot Hit Streak 23 | 7 23 4 . . . . Robot Miss Streak 2 | 2 1 2 . . . . Penetration Max . | . . . . . . . Secondary Targets . | . . . . . . . Shots Hit Robots 107 | 23 52 24 . . 3 5 Core Hits 41 | 9 19 9 . . 2 2 Critical Kills . | . . . . . . . Critical Parts Destroyed 1 | . 1 . . . . . Critical Strikes 2 | . 1 . . . . 1 Destroy 1 | . 1 . . . . . Sever 1 | . . . . . . 1 Melee Attacks 63 | . 35 12 . . 9 7 Impact . | . . . . . . . Slashing 63 | . 35 12 . . 9 7 Piercing . | . . . . . . . Sneak Attacks 3 | . 3 . . . . . Combat Hostiles . | . . . . . . . Follow-up Attacks . | . . . . . . . Damage Inflicted 1523 | 171 839 334 . . 88 91 Guns 496 | 171 201 124 . . . . Cannons . | . . . . . . . Explosions . | . . . . . . . Melee 1025 | . 636 210 . . 88 91 Ramming 2 | . 2 . . . . . Kinetic 496 | 171 201 124 . . . . Thermal . | . . . . . . . Explosive . | . . . . . . . Electromagnetic . | . . . . . . . Impact . | . . . . . . . Slashing 1025 | . 636 210 . . 88 91 Piercing . | . . . . . . . Highest Corruption . | . . . . . . . Average Corruption . | . . . . . . . Corruption Purged . | . . . . . . . Corruption Blocked . | . . . . . . . Overload Shots . | . . . . . . . Overflow Damage 18 | . 18 . . . . . Projectiles . | . . . . . . . Explosions . | . . . . . . . Melee 18 | . 18 . . . . . Knockbacks . | . . . . . . . Impact . | . . . . . . . Kinetic . | . . . . . . . Secondary . | . . . . . . . Self-Inflicted Damage . | . . . . . . . Shots . | . . . . . . . Rammed . | . . . . . . . Targets Rammed 1 | . 1 . . . . . Kicked . | . . . . . . . Crushed 1 | . 1 . . . . . Highest Temperature 40 | . 14 40 . . . . Average Temperature 18 | . 14 20 . . . . Received Heat Transfer 461 | . 219 242 . . . . Siege Activations . | . . . . . . . Martial Activations . | . . . . . . . Shielding Activations . | . . . . . . . Robots Disrupted . | . . . . . . . Combat Hostiles . | . . . . . . . Robots Corrupted . | . . . . . . . Combat Hostiles . | . . . . . . . Parts Fried . | . . . . . . . Impact Corruptions . | . . . . . . . Robots Melted . | . . . . . . . Combat Hostiles . | . . . . . . . Parts Melted . | . . . . . . . Heat Transferred . | . . . . . . . Parts Sabotaged . | . . . . . . . Parts Stolen . | . . . . . . . Parts Stripped . | . . . . . . . Power Chain Reactions . | . . . . . . . Alert | -11 -10 -10 -10 -9 -8 -7 ------- Run | Yrd Mat Min Exi Min Mat Fac Maximum Alert Level . | . . . . . . . Low Security (%) 100 | 100 100 100 . 100 100 100 Level 1 . | . . . . . . . Level 2 . | . . . . . . . Level 3 . | . . . . . . . Level 4 . | . . . . . . . Level 5 . | . . . . . . . High Security . | . . . . . . . Max Security . | . . . . . . . Peak Influence 135 | 5 135 30 . . 15 55 Initial 5 | . . . . . . 5 Average 16 | . 25 8 . . 1 6 Influence Increases 627 | 20 436 50 . . 56 65 Destroy 0b10 Robot/C 320 | . 240 40 . . . 40 Destroy 0b10 Robot/NC 55 | 20 25 . . . 10 . Destroy Leader 80 | . 58 10 . . 2 10 Successful Hack 38 | . 28 . . . 10 . Disable Machine 9 | . 9 . . . . . Destroy Structure 5 | . 1 . . . 4 . Lose Combat Pursuer 120 | . 75 . . . 30 15 Influence Decreases 572 | 20 436 50 . . 41 25 Entered New Map 10 | . . . . . . 10 Time Decay 473 | 20 347 50 . . 41 15 Purge Threat 89 | . 89 . . . . . Squads Dispatched 2 | . 1 . . . . 1 Investigation 1 | . 1 . . . . . Extermination . | . . . . . . . Reinforcement 1 | . . . . . . 1 Assault . | . . . . . . . Garrison . | . . . . . . . Intercept . | . . . . . . . Searches Triggered . | . . . . . . . Construction Impeded . | . . . . . . . Haulers Reinforced . | . . . . . . . Active Scanning Responses . | . . . . . . . Cargo Convoy Interrupts . | . . . . . . . Stealth | -11 -10 -10 -10 -9 -8 -7 --------- Run | Yrd Mat Min Exi Min Mat Fac Distress Signals 3 | . 2 . . . 1 . Communications Jammed . | . . . . . . . Distress Signals . | . . . . . . . Times Spotted 50 | . 24 13 . 1 6 6 Peak Tracking Total 8 | . 5 8 . 1 5 5 Tactical Retreats 10 | . 5 1 . 1 2 1 Traps | -11 -10 -10 -10 -9 -8 -7 ------- Run | Yrd Mat Min Exi Min Mat Fac Traps Triggered 1 | . 1 . . . . . Indirectly . | . . . . . . . Trap Hack Attempts . | . . . . . . . Triggered . | . . . . . . . Disarmed . | . . . . . . . Reprogrammed . | . . . . . . . Reused . | . . . . . . . Traps Extracted . | . . . . . . . Installed . | . . . . . . . Triggered . | . . . . . . . Machines | -11 -10 -10 -10 -9 -8 -7 ---------- Run | Yrd Mat Min Exi Min Mat Fac Machines Disabled 1 | . 1 . . . . . Max in Single Turn 1 | . 1 . . . . . Machines Repaired . | . . . . . . . Machines Dismantled . | . . . . . . . Machines Sabotaged . | . . . . . . . Overloaded Fab Kills . | . . . . . . . Hacking | -11 -10 -10 -10 -9 -8 -7 --------- Run | Yrd Mat Min Exi Min Mat Fac Machines Accessed 21 | . 10 . 2 . 8 1 Terminals 16 | . 8 . . . 7 1 Fabricators . | . . . . . . . Repair Stations . | . . . . . . . Recycling Units 3 | . 2 . . . 1 . Scanalyzers . | . . . . . . . Garrison Access . | . . . . . . . Total Hacks 91 | . 50 . 5 . 34 2 Successful 66 | . 38 . 5 . 23 . Failed 25 | . 12 . . . 11 2 Catastrophic 1 | . . . . . . 1 Database Lockouts . | . . . . . . . Manual 59 | . 35 . 1 . 22 1 Terminals 82 | . 48 . . . 32 2 Fabricators . | . . . . . . . Repair Stations . | . . . . . . . Recycling Units 4 | . 2 . . . 2 . Scanalyzers . | . . . . . . . Garrison Access . | . . . . . . . Terminal Hacks 48 | . 28 . 5 . 15 . Record 5 | . . . 4 . 1 . Part Schematic 2 | . 2 . . . . . Robot Schematic 7 | . 5 . . . 2 . Prototype ID Bank 4 | . 1 . . . 3 . Level Access Points 1 | . . . . . 1 . Branch Access Points 2 | . 1 . . . 1 . Scanalyzer Index 1 | . 1 . . . . . Alert Level 1 | . 1 . . . . . Unreport Threat 1 | . 1 . . . . . Locate Traps 5 | . 4 . . . 1 . Dispatch Records 3 | . 1 . . . 2 . Security Status 1 | . . . . . 1 . Surveillance Status 1 | . 1 . . . . . Patrol Status 1 | . 1 . . . . . Reinforcement Status 1 | . 1 . . . . . Recall Reinforcements 1 | . 1 . . . . . Hauler Manifests 2 | . 1 . . . 1 . Registered Prototypes 2 | . 1 . . . 1 . Zone Layout 6 | . 5 . . . 1 . Proto ID Catalog 1 | . . . 1 . . . Fabricator Hacks . | . . . . . . . Repair Station Hacks . | . . . . . . . Recycling Unit Hacks 3 | . 2 . . . 1 . Retrieve Components 3 | . 2 . . . 1 . Scanalyzer . | . . . . . . . Garrison Access Hacks . | . . . . . . . Unauthorized Hacks 14 | . 8 . . . 6 . Terminals 14 | . 8 . . . 6 . Botnet 14 | . 8 . . . 6 . Fabricators . | . . . . . . . Repair Stations . | . . . . . . . Recycling Units . | . . . . . . . Scanalyzers . | . . . . . . . Garrison Access . | . . . . . . . Data Cores Recovered 1 | . . . . . 1 . Used 1 | . . . . . 1 . Hacking Detections 14 | . 8 . . . 5 1 Full Trace Events 1 | . 1 . . . . . Feedback Events . | . . . . . . . Feedback Blocked . | . . . . . . . Robot Schematics Acquired 7 | . 5 . . . 2 . Robots Built . | . . . . . . . Authchips . | . . . . . . . Time . | . . . . . . . Total Robot Build Rating . | . . . . . . . Part Schematics Acquired 2 | . 2 . . . . . Parts Built . | . . . . . . . Authchips . | . . . . . . . Time . | . . . . . . . Total Part Build Rating . | . . . . . . . Part Studies Acquired . | . . . . . . . Parts Repaired . | . . . . . . . Time . | . . . . . . . Parts Recycled . | . . . . . . . Recycled Matter . | . . . . . . . Retrieved Matter . | . . . . . . . Retrieved Components 6 | . 5 . . . 1 . Parts Scanalyzed . | . . . . . . . Part Schematics Acquired . | . . . . . . . Parts Damaged . | . . . . . . . Bothacking | -11 -10 -10 -10 -9 -8 -7 ------------ Run | Yrd Mat Min Exi Min Mat Fac Used RIF Installer . | . . . . . . . Robots Hacked . | . . . . . . . Non-combat . | . . . . . . . Combat . | . . . . . . . Robot Hacks Applied . | . . . . . . . Relay Couplers Released . | . . . . . . . Fabnet Peak Effective % . | . . . . . . . Robots Rewired . | . . . . . . . Allies Hacked . | . . . . . . . Hacks Repelled . | . . . . . . . Allies | -11 -10 -10 -10 -9 -8 -7 -------- Run | Yrd Mat Min Exi Min Mat Fac Total Allies 3 | . . 3 . . . . Largest Group 3 | . . 3 . . . . Highest-Rated Group 40 | . . 40 . . . . Highest-Rated Ally 16 | . . 16 . . . . Total Orders . | . . . . . . . Ally Attacks 26 | . . 26 . . . . Total Damage 290 | . . 290 . . . . Kills 6 | . . 6 . . . . Allies Corrupted . | . . . . . . . Allies Melted . | . . . . . . . Intel | -11 -10 -10 -10 -9 -8 -7 ------- Run | Yrd Mat Min Exi Min Mat Fac Active Infowar (turns) 2692 | 120 1537 188 250 304 206 87 Terrain 333 | . . . . 40 206 87 Structural 2187 | . 1489 188 250 260 . . Seismic 2692 | 120 1537 188 250 304 206 87 T.N.C. 1960 | . 1010 188 250 304 206 2 Robot Analysis Total . | . . . . . . . Derelict Logs Recovered 1 | . . . . 1 . . Drone Launches . | . . . . . . . Drone Recoveries . | . . . . . . . Exploration | -11 -10 -10 -10 -9 -8 -7 ------------- Run | Yrd Mat Min Exi Min Mat Fac Turns Passed 2813 | 241 1537 188 250 304 206 87 Spaces Moved 2557 | 114 827 158 494 514 334 116 Core 1603 | 5 . 142 494 514 332 116 Treads 952 | 109 827 16 . . . . Legs . | . . . . . . . Wheels . | . . . . . . . Hover 2 | . . . . . 2 . Flight . | . . . . . . . Fastest Speed 50 | 50 160 50 50 50 50 50 Average Speed 90 | 155 160 61 50 50 50 50 Slowest Speed 160 | 160 160 160 50 50 100 50 Overloaded Moves . | . . . . . . . Propulsion Burnouts . | . . . . . . . Robots Hopped . | . . . . . . . Potential Cave-ins 2 | . . . . . 2 . Cave-ins Triggered . | . . . . . . . Exploration Rate (%) 49 | 5 97 25 92 89 35 4 Regions Visited 6 Branch Regions 3 Pre-discovered Areas 1 | . . . 1 . . . Known Exits Taken 2 | . 1 . . . 1 . Unknown Exits Taken 4 | 1 . 1 1 1 . . Scrap Searched 3 | . . . . 3 . . Spaces Dug 7 | . 1 . . . 6 . Terrain Destroyed 7 | . 1 . . . 6 . Melee 7 | . 1 . . . 6 . Projectile . | . . . . . . . AOE . | . . . . . . . Terrain Rammed . | . . . . . . . Walls Destroyed . | . . . . . . . Machines Disabled . | . . . . . . . Actions | -11 -10 -10 -10 -9 -8 -7 --------- Run | Yrd Mat Min Exi Min Mat Fac Total 2848 | 150 950 206 496 560 352 134 Wait 91 | . 45 3 . 36 1 6 Move 2551 | 113 826 157 493 513 333 116 Hop . | . . . . . . . Pick Up 11 | . 5 . 1 3 1 1 Fast Attach 13 | 5 3 . . 2 3 . Attach 3 | . . . . . 2 1 Detach 2 | . . . . . 1 1 Swap 9 | . 1 4 . 2 1 1 Drop 13 | . 5 1 1 4 1 1 Fire 80 | 32 26 22 . . . . Melee 63 | . 35 12 . . 9 7 Ram . | . . . . . . . Kick . | . . . . . . . Crush 1 | . 1 . . . . . Escape Stasis . | . . . . . . . Rewire 1 | . . . 1 . . . Trap . | . . . . . . . Miscellaneous 10 | . 3 7 . . . . Route ------- -11/Scrapyard -10/Materials (discovered 5 exits: [*Mat x3] / *Min / [*Sub]) -10/Mines -10/Exiles -9/Mines (discovered 2 exits: *Mat x2) -8/Materials (discovered 3 exits: *Fac x3) -7/Factory History --------- Turn | Location | Event 7 | -11/Scrapyard | Upgraded with Propulsion slot (x1) 7 | -11/Scrapyard | Upgraded with Utility slot (x2) 9 | -11/Scrapyard | Discovered new exit (range 16) 242 | -11/Scrapyard | Entered Materials 311 | -10/Materials | Build established: Hacker-Mutant 394 | -10/Materials | Discovered new exit (range 14) 890 | -10/Materials | Discovered new exit (range 15) 1119 | -10/Materials | Discovered new exit (range 8) 1174 | -10/Materials | Identified exit to Mines 1475 | -10/Materials | Discovered new exit (range 5) 1779 | -10/Materials | Entered Mines 1781 | -10/Mines | Reached level 2 1782 | -10/Mines | Core integrity fell below 50% 1821 | -10/Mines | Assembled infested the area 1864 | -10/Mines | Assisted by bots powering up and referring to "LRC-V3" 1965 | -10/Mines | Deemed a non-threat by the Exiles lab entrance 1965 | -10/Mines | Discovered new exit (range 5) 1967 | -10/Mines | Entered Exiles 1982 | -10/Exiles | Met 8R-AWN 1988 | -10/Exiles | Met EX-HEX 2027 | -10/Exiles | Met EX-DEC 2039 | -10/Exiles | Visited The Gauntlet 2102 | -10/Exiles | Learned location of Zion (-6) 2119 | -10/Exiles | Met EX-BIN 2127 | -10/Exiles | Aligned with FarCom system 2127 | -10/Exiles | Given EX-Vault access code 2161 | -10/Exiles | Opened EX-Vault 2166 | -10/Exiles | Found PSU Rigger 2177 | -10/Exiles | Warned to stay clear of 0b10 Research branches 2211 | -10/Exiles | Discovered new exit (range 12) 2217 | -10/Exiles | Left Exiles lab with PSU Rigger 2217 | -10/Exiles | Entered Mines 2219 | -9/Mines | Reached level 3 2219 | -9/Mines | Upgraded with Propulsion slot (x2) 2241 | -9/Mines | Learned Materials trap positions 2259 | -9/Mines | Discovered new exit (range 5) 2334 | -9/Mines | Found a damaged Exp. Sensor Array with a note attached 2336 | -9/Mines | Found Prototype Device 2336 | -9/Mines | Identified Exp. Sensor Array 2346 | -9/Mines | Discovered new exit (range 7) 2392 | -9/Mines | Found a hidden stash of uninstalled traps 2446 | -9/Mines | Core integrity fell below 20% 2521 | -9/Mines | Entered Materials 2522 | -8/Materials | Build established: Hacker-Scout 2522 | -8/Materials | Loaded intel: 9 trap records 2522 | -8/Materials | Core integrity fell below 50% 2522 | -8/Materials | Core integrity fell below 20% 2523 | -8/Materials | Reached level 4 2523 | -8/Materials | Reached level 5 2523 | -8/Materials | Reached level 6 2533 | -8/Materials | Upgraded with Propulsion slot (x1) 2533 | -8/Materials | Upgraded with Utility slot (x1) 2536 | -8/Materials | Identified exit to Factory 2727 | -8/Materials | Entered Factory 2728 | -7/Factory | Core integrity fell below 50% 2728 | -7/Factory | Core integrity fell below 20% 2729 | -7/Factory | Reached level 7 2729 | -7/Factory | Reached level 8 2729 | -7/Factory | Reached level 9 2814 | -7/Factory | Destroyed by S-27 Virus with Autogun Last Messages --------------- exceed the object's Armor value. Inspect machines by right-clicking on them, and walls via Ctrl-RMB (or as any other object in Keyboard Mode). Hovering the cursor over an object also shows its Armor in the Scan window. U-05 Engineer works on Subcomponent Replicator. ALERT: All DSF locations entering lockdown mode. Dropped Mining Claw. O-16 Technician uses terminal to summon reinforcements. ALERT: Hostiles spotted, dispatching reinforcements to Terminal F015. O-16 Technician locks terminal. S-27 Virus Lgt. Nuclear Core severed. S-27 Virus destroyed. Acquired 65 matter. R-06 Scavenger collects Lgt. Nuclear Core. R-06 Scavenger collects Mining Claw. S-27 Virus destroyed. Map ----- +----------------------------------------------------+ | ?????????????????????????????????????????????????? | | ?????????????????????????????????????????????????? | | ?????????????????????????????????????????????????? | | ?????????????????????????????????????????????????? | | ?????????????????????????????????????????????????? | | ?????????????????????????????????????????????????? | | ?????????????????????????????????????????????????? | | ?????????????????????????????????????????????????? | | ?????????????????????????????????????????????????? | | ?????????????????????????"???????????????????????? | | ?????????????????? ? " ? ? ?#????????????????????? | | ???????????????? ? ? ??#??????????????????? | | ????????????#???##+##?+####?#?#?/##??????????????? | | ????????????????# ? ?????????????? | | ?????????? ? # ? ? ??? ?????????????? | | ?????????? ? + ? ? ? ? ? ? ? ???????????? | | ????????????? ? # ########/?#?#?###/#??????????? | | ????????""?? ""?# ?## ? # ??????????? | | ?????????"" ?Y"# ### ??""" """ ? ???????????? | | ??????????? "?"# ###? ?""" """ # ???????????? | | ??????? ?????? # ### ??"""?""" # ?????????? | | ??????#??#?##?### ### ?? ? # ? ???????? | | ????????###?##### ####??###+###### ? ? ? ??????? | | ????????# ?? # ##?### ###? ?? ??????? | | ??????????? # ###### #### ?????????? | | ?????##?? ? ?+ T s%=*@%= T ###? ???? ???????? | | ?????????? """?# ######Y #### ? ?? ?????? | | ????????# """ # ###?##? o #### ? ????????? | | ???????##???"" ##########?## ###?# ? ?????? | | ?????##????##########?###### ####???####?+?????? | | ????##???###############?### #######?##?#?#????? | | ##??????#????###? ? ??## #?####?### ???? | | #??#?#??##?###### ? ## ###T ####? ? ?? | | ?????????????####? ? # +??? | | ????????######### ?# ##+###### ? ??? ?? | | ?????????#?#####? ?? ? # # """ #? ?? ?? | | ????#????######## # # """ #?######??? | | ??#??####### """# ?# # ""???####### ?? | | #?##?# #""R"# # # ###??####?# | | ??#### #"" "#####+##### #? ########??? | | ????## # #########?? | | #???## # ???###?##??# | | ##??## ^ ###############??? | | ###?## """"" """"" """"" # ##?## | | ##??## """"" """"" """"" # #???? | | ########### """ """ """ # #?### | | ?#?####?#?# # ##### | | ?#?#?#??#?# """"" # ##??# | | ??######### """"" # #???# | | ???# # """ + ##### | +----------------------------------------------------+ Best States ------------- Heat Dissipation 25 Energy Generation 14 Energy Capacity 250 Matter Stores 300 Matter Capacity 300 Sight Range 18 Robot Scan Range 6 Terrain Scan Range 16 Terrain Scan Density 510 Resistance: KI 20 Resistance: TH 20 Resistance: EX 20 Resistance: EM 20 Resistance: I 20 Resistance: S 20 Resistance: P 20 Evasion (%) 58 Recoil Reduction 2 Offensive Hacking 40 Defensive Hacking 20 Item Schematics ----------------- Flight Unit | -10/Materials | Hacked Grenade Launcher | -10/Materials | Hacked Robot Schematics ------------------ G-34 Mercenary | -10/Materials | Hacked S-10 Pest | -10/Materials | Hacked A-02 Transporter | -10/Materials | Hacked W-16 Scout | -10/Materials | Hacked O-16 Technician | -10/Materials | Hacked Y-45 Defender | -8/Materials | Hacked O-24 Administrator | -8/Materials | Hacked Fabricated ------------ Nothing Repaired ---------- Nothing Studied --------- None Alien Tech Used ----------------- None Achievements -------------- None Challenges ------------ None RPGLIKE | -11 -10 -10 -10 -9 -8 -7 --------- Run | Yrd Mat Min Exi Min Mat Fac Levels Raised 8 | . . 1 . 1 3 3 XP Earned 16369 | 4000 1495 750 350 843 4330 4601 XP Spent 15925 | 3915 . 700 . 1900 4800 4610 Upgrades 32 | 14 . 2 . 2 7 7 Propulsion Slot 4 | 1 . . . 2 1 . Utility Slot 3 | 2 . . . . 1 . Mass Support 2 | . . 2 . . . . Inventory Capacity 2 | 2 . . . . . . Sight Range 2 | . . . . . 2 . Sensor Range 3 | 3 . . . . . . Terrain Scan Density 5 | 2 . . . . . 3 Hack Attack % 6 | 2 . . . . 2 2 Hack Defense % 4 | 1 . . . . 1 2 KI Damage % 1 | 1 . . . . . . Protomatter Created 177 | . 110 48 . . . 19 Integrity Restored 201 | . 57 144 . . . . Core 201 | . 57 144 . . . . Protomatter Decayed 132 | . 91 41 . . . . Game ------ Seed MicroJammingTrident Manual? 0 Play Time 00:46:07 Cumulative 14.2 hours Start 2026.09.05 @ 23:26:16 End 2026.09.06 @ 12:28:02 Sessions 3 Manual Loads 0 Difficulty Adventurer Special Mode Winter2019/RPGLIKE Game No. 12 Rogue 9 Adventurer 1 Explorer 2 Win Type - Total 0 Types 0/0/0/0/0/0/0/0/0/0 Lore% 22 Gallery% 15 Achievement% 17 Wizard Run 0 Options --------- Layout 2 ASCII 0 Keyboard 1 Movement Numpad Keybinds 0 Fullscreen 2 Font 16/Terminus Map View 50x49 Zoom Use 0% Tactical HUD 0 Map Filters NONE Filters NONE Steam SD RUN: 2a69dba8-f757-48b5-8ee4-5173d2f5ce87